fUST/lending_fUST_20260115
["ID","MTS","AMOUNT","RATE_DAILY","PERIOD"]
[401960368,1768422641327,-503.99870158,0.00014916,2]
[401960369,1768422641337,-2000.0,0.00014916,2]
[401960370,1768422641352,-2000.0,0.00014916,2]
[401960371,1768422641361,-2000.0,0.00014916,2]
[401960372,1768422641371,-1484.11851224,0.00014916,2]
[401960373,1768422641380,-233.4001228,0.00014916,2]
[401960374,1768422641390,-2000.0,0.00014916,2]
[401960375,1768422641399,-2000.0,0.00014916,2]
[401960376,1768422641410,-2000.0,0.00014916,2]
[401960377,1768422641421,-503.76788333,0.00014916,2]
[401960378,1768422641431,-2000.0,0.00014916,2]
[401960379,1768422641440,-664.35893779,0.00014916,2]
[401960380,1768422641450,-2000.0,0.00014916,2]
[401960381,1768422641460,-2031.81939639,0.00014916,2]
[401960382,1768422641470,-2000.0,0.00014916,2]
[401960383,1768422641479,-2000.0,0.00014916,2]
[401960384,1768422641489,-2000.0,0.00014916,2]
[401960385,1768422641498,-2000.0,0.00014916,2]
[401960386,1768422641508,-2000.0,0.00014916,2]
[401960387,1768422641517,-1288.90612665,0.00014916,2]
[401960388,1768422641527,-1019.00256747,0.00015,2]
[401960389,1768422641536,-33564.60121285,0.00015,2]
[401960390,1768422641545,-1372.43724231,0.00015,3]
[401960391,1768422641555,-151.00724332,0.00015,2]
[401960392,1768422641565,-16286.19559247,0.00015,7]
[401960393,1768422641575,-864.0,0.00015036,2]
[401960394,1768422641584,-14745.19852951,0.00015037,2]
[401960395,1768422641594,-800.0,0.00015068,2]
[401960396,1768422641603,-562.90052496,0.00015201,2]
[401960397,1768422641613,-1200.0,0.00015316,2]
[401960398,1768422641622,-503.42728186,0.00015342,2]
[401960399,1768422641632,-2000.0,0.00015342,2]
[401960400,1768422641641,-2059.4878042,0.00015342,2]
[401960401,1768422641651,-2000.0,0.00015342,2]
[401960402,1768422641661,-2000.0,0.00015342,2]
[401960403,1768422641671,-159.70838602,0.00015342,2]
[401960404,1768422641681,-2000.0,0.00015342,2]
[401960405,1768422641692,-373.84265648,0.00015342,2]
[401960406,1768422641703,-2000.0,0.00015342,2]
[401960407,1768422641714,-992.62086011,0.00015342,2]
[401960408,1768422641726,-2000.0,0.00015342,2]
[401960409,1768422641735,-2000.0,0.00015342,2]
[401960410,1768422641745,-1501.41649607,0.00015342,2]
[401960411,1768422641755,-1549.64,0.00015405,2]
[401960412,1768422641765,-2500.0,0.00015464,2]
[401960413,1768422641775,-2500.0,0.00015464,2]
[401960414,1768422641785,-2500.0,0.00015464,2]
[401960415,1768422641795,-2500.0,0.00015464,2]
[401960416,1768422641805,-2500.0,0.00015464,2]
[401960417,1768422641816,-2500.0,0.00015464,2]
[401960418,1768422641827,-209.88778028,0.00015464,2]
[401960419,1768422641837,-2500.0,0.00015464,2]
[401960420,1768422641847,-2500.0,0.00015464,2]
[401960421,1768422641858,-2500.0,0.00015464,2]
[401960422,1768422641867,-2500.0,0.00015464,2]
[401960423,1768422641877,-2500.0,0.00015464,2]
[401960424,1768422641887,-10000.0,0.0001551,2]
[401960425,1768422641897,-10000.0,0.0001551,2]
[401960426,1768422641907,-10000.0,0.0001551,2]
[401960427,1768422641917,-4839.12,0.0001551,2]
[401960428,1768422641927,-10000.0,0.0001551,2]
[401960429,1768422641936,-10000.0,0.0001551,2]
[401960430,1768422641946,-823.0,0.00015805,2]
[401960431,1768422641956,-1500.0,0.00015864,2]
[401960432,1768422641966,-2500.0,0.0001589,2]
[401960433,1768422641976,-563.27896724,0.0001589,2]
[401960434,1768422641986,-1211.66599686,0.0001589,2]
[401960435,1768422641996,-2500.0,0.0001589,2]
[401960436,1768422642005,-2500.0,0.0001589,2]
[401960437,1768422642015,-2500.0,0.0001589,2]
[401960438,1768422642025,-2500.0,0.0001589,2]
[401960439,1768422642035,-215.88592206,0.00016,2]
[401960440,1768422642045,-171.14126243,0.00016012,2]
[401960441,1768422642055,-3000.0,0.00016012,2]
[401960442,1768422642065,-3000.0,0.00016012,2]
[401960443,1768422642074,-3000.0,0.00016012,2]
[401960444,1768422642084,-413.29712103,0.00016012,2]
[401960445,1768422642094,-3000.0,0.00016012,2]
[401960446,1768422642104,-3000.0,0.00016012,2]
[401960447,1768422642114,-3000.0,0.00016012,2]
[401960448,1768422642124,-2916.13825137,0.00016012,2]
[401960449,1768422642134,-3000.0,0.00016012,2]
[401960450,1768422642145,-1192.29139729,0.00016012,2]
[401960451,1768422642155,-250.0,0.00016153,2]
[401960453,1768422642165,-1600.0,0.00016164,2]
[401960455,1768422642174,-3649.42169367,0.00016265,2]
[401960456,1768422642185,-151.0,0.000163,2]
[401960457,1768422642195,-1800.0,0.00016412,2]
[401960458,1768422642205,-500.0,0.00016438,2]
[401960459,1768422642215,-449.05735745,0.00016438,2]
[401960460,1768422642225,-500.0,0.00016438,2]
[401960461,1768422642234,-500.0,0.00016438,2]
[401960462,1768422642244,-500.0,0.00016438,2]
[401960463,1768422642253,-500.0,0.00016438,2]
[401960464,1768422642263,-595.30780858,0.00016438,2]
[401960465,1768422642273,-200.0,0.00016438,2]
[401960466,1768422642283,-164.26686219,0.00016438,2]
[401960467,1768422642293,-544.67516775,0.00016438,2]
[401960468,1768422642302,-3000.0,0.00016438,2]
[401960469,1768422642311,-1319.68437302,0.00016438,2]
[401960470,1768422642321,-3000.0,0.00016438,2]
[401960473,1768422642331,-3000.0,0.00016438,2]
[401960475,1768422642342,-260.29560408,0.00016438,2]
[401960478,1768422642351,-283.83301289,0.00016456,2]
[401960480,1768422642360,-200.0,0.00016473,2]
[401960482,1768422642370,-1000.0,0.0001654,2]
[401960484,1768422642380,-3500.0,0.0001656,2]
[401960486,1768422642390,-3500.0,0.0001656,2]
[401960488,1768422642400,-3500.0,0.0001656,2]
[401960490,1768422642409,-3500.0,0.0001656,2]
[401960492,1768422642420,-3500.0,0.0001656,2]
[401960494,1768422642430,-3500.0,0.0001656,2]
[401960496,1768422642439,-3500.0,0.0001656,2]
[401960498,1768422642449,-151.0,0.000169,2]
[401960500,1768422642460,-2100.0,0.0001696,2]
[401960502,1768422642469,-2087.94374426,0.00016986,2]
[401960504,1768422642479,-270.0,0.00016986,2]
[401960506,1768422642489,-3500.0,0.00016986,2]
[401960508,1768422642500,-3500.0,0.00016986,2]
[401960509,1768422642510,-95477.61285994,0.00017,2]
[401960510,1768422642521,-1892.75982988,0.00017108,2]
[401960511,1768422642531,-4000.0,0.00017108,2]
[401960512,1768422642541,-4000.0,0.00017108,2]
[401960514,1768422642551,-2917.48910491,0.00017108,2]
[401960515,1768422642560,-4000.0,0.00017108,2]
[401960516,1768422642569,-4000.0,0.00017108,2]
[401960517,1768422642579,-4000.0,0.00017108,2]
[401960518,1768422642589,-637.40206503,0.00017201,2]
[401960519,1768422642598,-2400.0,0.0001726,2]
[401960520,1768422642608,-1152.0,0.00017351,2]
[401960521,1768422642618,-151.0,0.000174,2]
[401960522,1768422642627,-5000.0,0.00017412,2]
[401960523,1768422642637,-2400.0,0.00017508,2]
[401960524,1768422642647,-400.0,0.00017534,2]
[401960525,1768422642657,-174.48080933,0.00017534,2]
[401960526,1768422642668,-4000.0,0.00017534,2]
[401960527,1768422642678,-4000.0,0.00017534,2]
[401960528,1768422642692,-2137.48177052,0.000176,2]
[401960529,1768422642702,-4500.0,0.00017656,2]
[401960530,1768422642711,-2699.34641428,0.00017656,2]
[401960531,1768422642721,-4500.0,0.00017656,2]
[401960532,1768422642732,-4500.0,0.00017656,2]
[401960533,1768422642742,-4500.0,0.00017656,2]
[401960534,1768422642751,-400.30202268,0.00017842,2]
[401960535,1768422642761,-1041.66666667,0.00017975,2]
[401960536,1768422642771,-160.0,0.00017975,2]
[401960537,1768422642780,-150512.98381193,0.00018,2]
[401960538,1768422642790,-42910.83449574,0.00018,5]
[401960539,1768422642800,-151.0,0.00018,2]
[401960540,1768422642810,-151.0,0.00018,2]
[401960541,1768422642820,-186.591978,0.00018,2]
[401960542,1768422642829,-186.591978,0.00018,2]
[401960543,1768422642840,-186.591978,0.00018,2]
[401960544,1768422642849,-186.591978,0.00018,2]
[401960545,1768422642859,-2700.0,0.00018056,2]
[401960546,1768422642870,-4500.0,0.00018082,2]
[401960547,1768422642880,-4500.0,0.00018082,2]
[401960548,1768422642891,-1000.0,0.00018194,2]
[401960549,1768422642900,-244.0,0.00018194,2]
[401960550,1768422642910,-5000.0,0.00018204,2]
[401960551,1768422642920,-5000.0,0.00018204,2]
[401960552,1768422642932,-5000.0,0.00018204,2]
[401960553,1768422642942,-5000.0,0.00018204,2]
[401960554,1768422642951,-843.4,0.0001834,2]
[401960555,1768422642961,-3200.0,0.00018356,2]
[401960556,1768422642971,-155.73,0.000184,2]
[401960557,1768422642982,-3000.0,0.00018604,2]
[401960558,1768422642992,-9703.856088,0.00018604,7]
[401960559,1768422643001,-151.0,0.0001863,2]
[401960560,1768422643012,-151.0,0.0001863,2]
[401960561,1768422643023,-151.0,0.0001863,2]
[401960562,1768422643034,-151.0,0.0001863,2]
[401960563,1768422643044,-151.0,0.0001863,2]
[401960564,1768422643054,-795.987765,0.0001863,2]
[401960565,1768422643064,-795.987765,0.0001863,2]
[401960566,1768422643074,-795.987765,0.0001863,2]
[401960567,1768422643084,-795.987765,0.0001863,2]
[401960568,1768422643095,-600.0,0.0001863,2]
[401960569,1768422643105,-5000.0,0.0001863,2]
[401960570,1768422643114,-5000.0,0.0001863,2]
[401960571,1768422643124,-2588.14205975,0.00018752,2]
[401960572,1768422643135,-5500.0,0.00018752,2]
[401960573,1768422643145,-5500.0,0.00018752,2]
[401960574,1768422643155,-5500.0,0.00018752,2]
[401960575,1768422643165,-5000.0,0.00018863,2]
[401960576,1768422643175,-149372.201915,0.00018863,7]
[401960577,1768422643185,-303.10001603,0.000189,2]
[401960578,1768422643195,-231483.25817476,0.000189,5]
[401960579,1768422643205,-303.10001603,0.000189,2]
[401960581,1768422643215,-3649.42169367,0.00018932,2]
[401960582,1768422643226,-2603.49,0.00019,2]
[401960583,1768422643236,-17969.48957745,0.00019,2]
[401960584,1768422643247,-1613.0,0.00019049,2]
[401960585,1768422643257,-303.10001603,0.00019089,2]
[401960587,1768422643268,-303.10001603,0.00019089,2]
[401960589,1768422643279,-3300.0,0.00019152,2]
[401960590,1768422643289,-180.72597661,0.00019178,2]
[401960592,1768422643299,-151.0,0.00019178,2]
[401960593,1768422643309,-683.587352,0.00019178,2]
[401960594,1768422643319,-683.587352,0.00019178,2]
[401960595,1768422643330,-683.587352,0.00019178,2]
[401960597,1768422643340,-683.587352,0.00019178,2]
[401960599,1768422643351,-5500.0,0.00019178,2]
[401960600,1768422643361,-5500.0,0.00019178,2]
[401960601,1768422643371,-167.77,0.000192,2]
[401960602,1768422643380,-31505.21,0.000192,2]
[401960603,1768422643391,-4165.64,0.000192,2]
[401960604,1768422643400,-212.43,0.000192,2]
[401960605,1768422643409,-239.88,0.000192,2]
[401960606,1768422643421,-24259.640218,0.000192,7]
[401960607,1768422643430,-355.808464,0.000192,7]
[401960608,1768422643440,-237.205643,0.000192,7]
[401960609,1768422643449,-711.9036051,0.00019201,2]
[401960610,1768422643460,-500.99801519,0.00019205,5]
[401960611,1768422643470,-1307.261093,0.00019278,7]
[401960612,1768422643479,-95731.299775,0.00019278,7]
[401960613,1768422643490,-14438.130631,0.00019278,7]
[401960614,1768422643499,-303.10001603,0.00019278,2]
[401960615,1768422643509,-151.0,0.00019278,2]
[401960616,1768422643519,-151.0,0.00019278,2]
[401960617,1768422643529,-186.591978,0.00019278,2]
[401960618,1768422643538,-186.591978,0.00019278,2]
[401960619,1768422643548,-186.591978,0.00019278,2]
[401960620,1768422643558,-186.591978,0.00019278,2]
[401960621,1768422643567,-303.10001603,0.00019278,2]
[401960622,1768422643576,-151.0,0.000193,2]
[401960623,1768422643586,-4040.44472477,0.000193,2]
[401960624,1768422643595,-6000.0,0.000193,2]
[401960625,1768422643604,-6000.0,0.000193,2]
[401960626,1768422643614,-307.61092211,0.00019452,2]
[401960627,1768422643624,-303.10001603,0.00019467,2]
[401960628,1768422643633,-303.10001603,0.00019467,2]
[401960629,1768422643643,-354.0,0.00019472,2]
[401960630,1768422643653,-1000.0,0.000196,2]
[401960631,1768422643663,-1000.0,0.000196,2]
[401960632,1768422643673,-1000.0,0.000196,2]
[401960633,1768422643683,-1000.0,0.000196,2]
[401960634,1768422643694,-1000.0,0.000196,2]
[401960636,1768422643704,-1000.0,0.000196,2]
[401960638,1768422643715,-1000.0,0.000196,2]
[401960640,1768422643725,-1000.0,0.000196,2]
[401960642,1768422643737,-1000.0,0.000196,2]
[401960643,1768422643747,-1000.0,0.000196,2]
[401960644,1768422643757,-196.089164,0.000196,7]
[401960645,1768422643768,-6318.37140328,0.000196,2]
[401960646,1768422643778,-889.521161,0.00019619,7]
[401960647,1768422643787,-843.4,0.00019619,2]
[401960648,1768422643797,-303.10001603,0.00019656,2]
[401960649,1768422643807,-303.10001603,0.00019656,2]
[401960650,1768422643816,-442.0,0.00019682,2]
[401960651,1768422643827,-156.20051056,0.000197,2]
[401960652,1768422643836,-800.0,0.00019726,2]
[401960653,1768422643856,-250.0,0.00019726,2]
[401960654,1768422643867,-6000.0,0.00019726,2]
[401960655,1768422643877,-6000.0,0.00019726,2]
[401960656,1768422643887,-250.0,0.00019726,2]
[401960657,1768422643898,-454.65002405,0.00019845,4]
[401960658,1768422643909,-454.65002405,0.00019845,4]
[401960659,1768422643921,-6500.0,0.00019848,2]
[401960660,1768422643932,-6500.0,0.00019848,2]
[401960661,1768422643942,-151.0,0.00019848,2]
[401960662,1768422643952,-151.0,0.00019848,2]
[401960663,1768422643962,-151.0,0.00019848,2]
[401960664,1768422643973,-151.0,0.00019848,2]
[401960665,1768422643983,-2223.802903,0.00019848,7]
[401960666,1768422643993,-9661.0,0.0002,2]
[401960667,1768422644003,-402.28551192,0.0002,2]
[401960668,1768422644013,-300.0,0.0002,2]
[401960669,1768422644022,-151.55000802,0.0002,2]
[401960670,1768422644033,-668.88471487,0.0002,2]
[401960671,1768422644043,-14703.49659754,0.0002,2]
[401960672,1768422644053,-371.66132516,0.0002,2]
[401960673,1768422644064,-6000.89259863,0.0002,2]
[401960674,1768422644073,-804.32909815,0.0002,2]
[401960675,1768422644083,-163524.2208646,0.0002,7]
[401960676,1768422644093,-74737.25492349,0.0002,2]
[401960677,1768422644103,-809.68655087,0.0002,2]
[401960678,1768422644113,-75199.65731769,0.0002,7]
[401960679,1768422644123,-202.7514447,0.0002,2]
[401960680,1768422644133,-504.32904356,0.0002,2]
[401960681,1768422644143,-673.07189375,0.0002,10]
[401960682,1768422644153,-17587.92944107,0.0002,2]
[401960683,1768422644163,-1000.0,0.00020013,2]
[401960684,1768422644173,-492.0,0.00020013,2]
[401960685,1768422644182,-454.65002405,0.00020034,4]
[401960686,1768422644192,-454.65002405,0.00020034,4]
[401960687,1768422644202,-503.71435101,0.0002013,2]
[401960688,1768422644214,-168.28,0.00020183,2]
[401960689,1768422644224,-151.0,0.000202,4]
[401960690,1768422644235,-151.0,0.00020223,2]
[401960691,1768422644245,-151.0,0.00020223,2]
[401960692,1768422644255,-151.0,0.00020223,2]
[401960693,1768422644266,-151.0,0.00020223,2]
[401960694,1768422644276,-151.0,0.00020223,2]
[401960695,1768422644286,-249.391796,0.00020223,2]
[401960696,1768422644296,-683.587352,0.00020223,2]
[401960697,1768422644306,-683.587352,0.00020223,2]
[401960698,1768422644317,-683.587352,0.00020223,2]
[401960699,1768422644328,-683.587352,0.00020223,2]
[401960700,1768422644338,-454.65002405,0.00020223,4]
[401960701,1768422644348,-795.987765,0.00020223,2]
[401960702,1768422644358,-795.987765,0.00020223,2]
[401960703,1768422644369,-795.987765,0.00020223,2]
[401960704,1768422644379,-795.987765,0.00020223,2]
[401960705,1768422644388,-151.0,0.00020223,2]
[401960706,1768422644402,-151.0,0.00020223,2]
[401960707,1768422644413,-186.591978,0.00020223,2]
[401960708,1768422644423,-186.591978,0.00020223,2]
[401960709,1768422644434,-186.591978,0.00020223,2]
[401960710,1768422644444,-186.591978,0.00020223,2]
[401960711,1768422644455,-454.65002405,0.00020223,4]
[401960712,1768422644465,-200.91058964,0.00020274,2]
[401960713,1768422644476,-6500.0,0.00020274,2]
[401960714,1768422644487,-350.0,0.00020274,2]
[401960715,1768422644497,-4402.72600724,0.00020274,2]
[401960716,1768422644508,-5683.87260271,0.00020396,2]
[401960717,1768422644519,-3073.24025849,0.00020396,2]
[401960718,1768422644529,-1053.07856721,0.0002041,11]
[401960719,1768422644539,-454.65002405,0.00020412,4]
[401960720,1768422644550,-454.65002405,0.00020412,4]
[401960721,1768422644560,-454.65002405,0.00020601,4]
[401960722,1768422644570,-454.65002405,0.00020601,4]
[401960723,1768422644581,-1389.51235473,0.0002061,2]
[401960724,1768422644593,-1000.0,0.00020822,2]
[401960725,1768422644603,-3268.152733,0.00020822,7]
[401960726,1768422644614,-7000.0,0.00020822,2]
[401960727,1768422644624,-450.0,0.00020822,2]
[401960728,1768422644636,-2000.0,0.00020845,7]
[401960729,1768422644647,-5559.507256,0.00020897,7]
[401960730,1768422644657,-843.4,0.00020899,2]
[401960731,1768422644668,-4165.64,0.000209,2]
[401960732,1768422644678,-212.43,0.000209,2]
[401960733,1768422644689,-239.88,0.000209,2]
[401960734,1768422644701,-256.51440562,0.000209,2]
[401960735,1768422644711,-2258.0,0.00020912,2]
[401960736,1768422644721,-151.0,0.00020969,2]
[401960737,1768422644733,-151.0,0.00020969,2]
[401960738,1768422644743,-151.0,0.00020969,2]
[401960739,1768422644752,-151.0,0.00020969,2]
[401960740,1768422644764,-31505.21,0.00021,2]
[401960741,1768422644777,-277.38884084,0.00021,2]
[401960742,1768422644788,-45938.40026941,0.00021,2]
[401960743,1768422644798,-168.26957802,0.00021116,2]
[401960744,1768422644807,-160.35823449,0.00021121,2]
[401960745,1768422644818,-786.40514517,0.00021201,2]
[401960746,1768422645037,-1053.07856721,0.0002122,12]
[401960747,1768422645052,-7500.0,0.0002137,2]
[401960748,1768422645063,-550.0,0.0002137,2]
[401960749,1768422645072,-4043.27337,0.00021395,7]
[401960750,1768422645083,-101830.39658878,0.000215,2]
[401960751,1768422645092,-3649.42169367,0.00021598,2]
[401960752,1768422645102,-62238.417464,0.00021692,7]
[401960753,1768422645113,-2000.0,0.00021803,7]
[401960754,1768422645122,-151.0,0.00021918,2]
[401960755,1768422645132,-151.0,0.00021918,2]
[401960756,1768422645142,-154.979883,0.00021918,2]
[401960757,1768422645152,-151.0,0.00021918,2]
[401960758,1768422645162,-151.0,0.00021918,2]
[401960759,1768422645171,-151.0,0.00021918,2]
[401960760,1768422645181,-151.0,0.00021918,2]
[401960761,1768422645191,-151.0,0.00021918,2]
[401960762,1768422645201,-151.0,0.00021918,2]
[401960763,1768422645211,-151.0,0.00021918,2]
[401960764,1768422645221,-151.0,0.00021918,2]
[401960765,1768422645231,-151.0,0.00021918,2]
[401960766,1768422645241,-151.0,0.00021918,2]
[401960767,1768422645252,-443.68528,0.00021918,2]
[401960768,1768422645261,-443.68528,0.00021918,2]
[401960769,1768422645271,-443.68528,0.00021918,2]
[401960770,1768422645282,-443.68528,0.00021918,2]
[401960771,1768422645295,-443.68528,0.00021918,2]
[401960772,1768422645307,-443.68528,0.00021918,2]
[401960773,1768422645319,-443.68528,0.00021918,2]
[401960774,1768422645330,-443.68528,0.00021918,2]
[401960775,1768422645340,-154.230394,0.00021918,2]
[401960776,1768422645350,-151.0,0.00021918,2]
[401960777,1768422645359,-151.0,0.00021918,2]
[401960778,1768422645369,-151.0,0.00021918,2]
[401960779,1768422645378,-151.0,0.00021918,2]
[401960780,1768422645388,-222.949825,0.00021918,2]
[401960781,1768422645398,-224.069012,0.00021918,2]
[401960782,1768422645407,-224.069012,0.00021918,2]
[401960783,1768422645417,-224.069012,0.00021918,2]
[401960784,1768422645427,-224.069012,0.00021918,2]
[401960785,1768422645437,-224.069012,0.00021918,2]
[401960786,1768422645447,-224.069012,0.00021918,2]
[401960787,1768422645457,-224.069012,0.00021918,2]
[401960788,1768422645467,-224.069012,0.00021918,2]
[401960789,1768422645477,-221.72891,0.00021918,2]
[401960790,1768422645487,-221.72891,0.00021918,2]
[401960791,1768422645496,-221.72891,0.00021918,2]
[401960792,1768422645506,-221.72891,0.00021918,2]
[401960793,1768422645516,-221.72891,0.00021918,2]
[401960794,1768422645526,-221.72891,0.00021918,2]
[401960795,1768422645537,-221.72891,0.00021918,2]
[401960796,1768422645547,-221.72891,0.00021918,2]
[401960797,1768422645557,-245.548449,0.00021918,2]
[401960798,1768422645567,-245.548449,0.00021918,2]
[401960799,1768422645578,-245.548449,0.00021918,2]
[401960800,1768422645587,-245.548449,0.00021918,2]
[401960801,1768422645598,-245.548449,0.00021918,2]
[401960802,1768422645607,-245.548449,0.00021918,2]
[401960803,1768422645619,-245.548449,0.00021918,2]
[401960804,1768422645629,-245.548449,0.00021918,2]
[401960805,1768422645639,-191.596972,0.00021918,2]
[401960806,1768422645648,-191.596972,0.00021918,2]
[401960807,1768422645658,-191.596972,0.00021918,2]
[401960808,1768422645670,-191.596972,0.00021918,2]
[401960809,1768422645680,-191.596972,0.00021918,2]
[401960810,1768422645694,-191.596972,0.00021918,2]
[401960812,1768422645704,-191.596972,0.00021918,2]
[401960813,1768422645714,-191.596972,0.00021918,2]
[401960814,1768422645724,-151.0,0.00021918,2]
[401960815,1768422645735,-151.0,0.00021918,2]
[401960816,1768422645746,-151.0,0.00021918,2]
[401960817,1768422645758,-151.0,0.00021918,2]
[401960818,1768422645769,-182.075768,0.00021918,2]
[401960820,1768422645779,-910.867725,0.00021918,2]
[401960822,1768422645797,-910.867725,0.00021918,2]
[401960823,1768422645810,-910.867725,0.00021918,2]
[401960824,1768422645821,-910.867725,0.00021918,2]
[401960825,1768422645832,-910.867725,0.00021918,2]
[401960826,1768422645842,-910.867725,0.00021918,2]
[401960827,1768422645853,-910.867725,0.00021918,2]
[401960828,1768422645863,-910.867725,0.00021918,2]
[401960829,1768422645874,-151.0,0.00021918,2]
[401960831,1768422645885,-151.0,0.00021918,2]
[401960833,1768422645896,-151.0,0.00021918,2]
[401960834,1768422645907,-206.655593,0.00021918,2]
[401960835,1768422645918,-206.655593,0.00021918,2]
[401960836,1768422645929,-256.419817,0.00021918,2]
[401960837,1768422645939,-206.655593,0.00021918,2]
[401960838,1768422645951,-206.655593,0.00021918,2]
[401960839,1768422645962,-206.655593,0.00021918,2]
[401960840,1768422645973,-282.150442,0.00021918,2]
[401960841,1768422645984,-206.655593,0.00021918,2]
[401960842,1768422645995,-282.150442,0.00021918,2]
[401960843,1768422646005,-282.150442,0.00021918,2]
[401960844,1768422646016,-206.655593,0.00021918,2]
[401960845,1768422646027,-282.150442,0.00021918,2]
[401960846,1768422646037,-206.655593,0.00021918,2]
[401960847,1768422646047,-151.0,0.00021918,2]
[401960848,1768422646057,-282.150442,0.00021918,2]
[401960849,1768422646068,-151.0,0.00021918,2]
[401960850,1768422646078,-282.150442,0.00021918,2]
[401960851,1768422646088,-282.150442,0.00021918,2]
[401960852,1768422646099,-282.150442,0.00021918,2]
[401960853,1768422646110,-151.0,0.00021918,2]
[401960854,1768422646120,-151.0,0.00021918,2]
[401960855,1768422646131,-151.0,0.00021918,2]
[401960856,1768422646142,-151.0,0.00021918,2]
[401960857,1768422646152,-151.0,0.00021918,2]
[401960858,1768422646162,-151.0,0.00021918,2]
[401960859,1768422646173,-151.0,0.00021918,2]
[401960860,1768422646183,-151.0,0.00021918,2]
[401960861,1768422646193,-151.0,0.00021918,2]
[401960862,1768422646204,-151.0,0.00021918,2]
[401960863,1768422646215,-285.638493,0.00021918,2]
[401960865,1768422646225,-151.0,0.00021918,2]
[401960868,1768422646235,-151.0,0.00021918,2]
[401960870,1768422646246,-151.0,0.00021918,2]
[401960871,1768422646257,-151.0,0.00021918,2]
[401960872,1768422646267,-293.503999,0.00021918,2]
[401960873,1768422646278,-293.503999,0.00021918,2]
[401960874,1768422646289,-151.0,0.00021918,2]
[401960875,1768422646300,-151.0,0.00021918,2]
[401960876,1768422646310,-293.503999,0.00021918,2]
[401960877,1768422646322,-293.503999,0.00021918,2]
[401960878,1768422646333,-151.0,0.00021918,2]
[401960879,1768422646344,-151.0,0.00021918,2]
[401960880,1768422646355,-151.0,0.00021918,2]
[401960881,1768422646365,-151.0,0.00021918,2]
[401960882,1768422646376,-293.503999,0.00021918,2]
[401960883,1768422646386,-293.503999,0.00021918,2]
[401960884,1768422646396,-151.0,0.00021918,2]
[401960885,1768422646406,-151.0,0.00021918,2]
[401960886,1768422646416,-167.014609,0.00021918,2]
[401960887,1768422646427,-293.503999,0.00021918,2]
[401960888,1768422646436,-293.503999,0.00021918,2]
[401960889,1768422646447,-163.521598,0.00021918,2]
[401960890,1768422646457,-582.913993,0.00021918,2]
[401960891,1768422646467,-582.913993,0.00021918,2]
[401960892,1768422646478,-582.913993,0.00021918,2]
[401960893,1768422646488,-582.913993,0.00021918,2]
[401960894,1768422646498,-582.913993,0.00021918,2]
[401960895,1768422646509,-582.913993,0.00021918,2]
[401960896,1768422646519,-582.913993,0.00021918,2]
[401960897,1768422646529,-582.913993,0.00021918,2]
[401960898,1768422646540,-151.0,0.00021918,2]
[401960899,1768422646550,-151.0,0.00021918,2]
[401960900,1768422646560,-207.237772,0.00021918,2]
[401960901,1768422646570,-207.237772,0.00021918,2]
[401960902,1768422646579,-207.237772,0.00021918,2]
[401960903,1768422646588,-207.237772,0.00021918,2]
[401960904,1768422646597,-207.237772,0.00021918,2]
[401960905,1768422646607,-207.237772,0.00021918,2]
[401960906,1768422646617,-207.237772,0.00021918,2]
[401960907,1768422646626,-207.237772,0.00021918,2]
[401960908,1768422646635,-1770.408967,0.00021918,2]
[401960909,1768422646645,-1770.408967,0.00021918,2]